[Event "Razuvaev Memorial 2020"]
[Site "Moscow"]
[Date "2020.11.06"]
[Round "1.2"]
[White "Nepomniachtchi, Ian"]
[Black "Motylev, Alexander"]
[Result "1-0"]
[ECO "A06"]
[WhiteElo "2785"]
[BlackElo "2618"]
[Annotator "ChessBase"]
[PlyCount "47"]
[EventDate "2020.11.06"]
[EventCountry "RUS"]
[SourceTitle "playchess.com"]
[Source "ChessBase"]
[SourceQuality "1"]
[TimeControl "300+3"]

1. Nf3 {[%emt 0:00:05]} d5 {[%emt 0:00:06]} 2. e3 {[%emt 0:00:01]} Nf6 {[%emt 0:00:03]} 3. b3 {[%emt 0:00:03]} Bf5 {[%emt 0:00:06]} 4. c4 {[%emt 0:00:02]} e6 {[%emt 0:00:01]} 5. Bb2 {[%emt 0:00:02]} h6 {[%emt 0:00:02]} 6. Nc3 {[%emt 0:00:01]} Be7 {[%emt 0:00:02]} 7. d4 {[%emt 0:00:01]} O-O {[%emt 0:00:06]} 8. Bd3 {[%emt 0:00:02]} Bxd3 {[%emt 0:00:40]} 9. Qxd3 {[%emt 0:00:00]} c5 {[%emt 0:00:02]} 10. dxc5 {[%emt 0:00:05]} Na6 {[%emt 0:00:05]} 11. cxd5 {[%emt 0:00:07]} Nxc5 {[%emt 0:00:34]} 12. Qd1 {[%emt 0:00:03]} Nxd5 {[%emt 0:00:04]} 13. Nxd5 {[%emt 0:00:01]} exd5 {[%emt 0:00:04]} 14. O-O {[%emt 0:00:01]} Rc8 {[%emt 0:00:01]} 15. Rc1 {[%emt 0:00:02]} Ne4 {[%emt 0:00:25]} 16. Rxc8 {[%emt 0:00:19]} Qxc8 {[%emt 0:00:01]} 17. Qxd5 {[%emt 0:00:00]} Bf6 {[%emt 0:00:14]} 18. Rc1 {[%emt 0:00:17]} Qe6 {[%emt 0:01:00]} 19. Qxe6 {[%emt 0:00:08]} fxe6 {[%emt 0:00:01]} 20. Bxf6 {[%emt 0:00:09]} gxf6 {[%emt 0:00:01]} 21. Nd4 {[%emt 0:00:06]} e5 {[%emt 0:01:25]} 22. Nf5 {[%emt 0:00:04]} Kf7 {[%emt 0:00:35]} 23. f3 {[%emt 0:00:03]} Ng5 {[%emt 0:00:02]} 24. Rc7+ {[%emt 0:00:02]} 1-0

[Event "Razuvaev Memorial 2020"]
[Site "Moscow"]
[Date "2020.11.06"]
[Round "1.3"]
[White "Vladimir, Potkin"]
[Black "Boris, Gelfand"]
[Result "1/2-1/2"]
[ECO "E60"]
[WhiteElo "2664"]
[BlackElo "2922"]
[Annotator "ChessBase"]
[PlyCount "57"]
[EventDate "2020.11.06"]
[EventCountry "RUS"]
[SourceTitle "playchess.com"]
[Source "ChessBase"]
[SourceQuality "1"]
[TimeControl "300+3"]

1. Nf3 {[%emt 0:00:01]} d5 {[%emt 0:00:03]} 2. e3 {[%emt 0:00:01]} c5 {[%emt 0:00:01]} 3. b3 {[%emt 0:00:01]} Nf6 {[%emt 0:00:02]} 4. Bb2 {[%emt 0:00:02]} g6 {[%emt 0:00:01]} 5. c4 {[%emt 0:00:10]} dxc4 {[%emt 0:00:02]} 6. Bxc4 {[%emt 0:00:02]} Bg7 {[%emt 0:00:01]} 7. O-O {[%emt 0:00:01]} O-O {[%emt 0:00:02]} 8. d4 {[%emt 0:00:05]} cxd4 {[%emt 0:00:01]} 9. Nxd4 {[%emt 0:00:01]} Bd7 {[%emt 0:00:01]} 10. Nd2 {[%emt 0:00:03]} Nc6 {[%emt 0:00:01]} 11. N2f3 {[%emt 0:00:04]} Rc8 {[%emt 0:00:22]} 12. Qe2 {[%emt 0:00:13]} Qa5 {[%emt 0:00:30]} 13. Rfd1 {[%emt 0:00:11]} Nxd4 {[%emt 0:00:19]} 14. Nxd4 {[%emt 0:00:24]} Rfd8 {[%emt 0:00:15]} 15. a4 {[%emt 0:00:05]} a6 {[%emt 0:00:34]} 16. h3 {[%emt 0:00:07]} Be8 {[%emt 0:00:10]} 17. Rac1 {[%emt 0:00:20]} Ne4 {[%emt 0:00:12]} 18. Ne6 {[%emt 0:01:04]} Rxd1+ {[%emt 0:00:19]} 19. Rxd1 {[%emt 0:00:03]} Bxb2 {[%emt 0:00:22]} 20. Qxb2 {[%emt 0:00:06]} Qc3 {[%emt 0:00:20]} 21. Qxc3 {[%emt 0:00:48]} Nxc3 {[%emt 0:00:01]} 22. Rd8 {[%emt 0:00:00]} Rxd8 {[%emt 0:00:05]} 23. Nxd8 {[%emt 0:00:00]} b5 {[%emt 0:00:04]} 24. Bd3 {[%emt 0:00:14]} bxa4 {[%emt 0:00:52]} 25. bxa4 {[%emt 0:00:01]} Nxa4 {[%emt 0:00:01]} 26. Bxa6 {[%emt 0:00:03]} Nc5 {[%emt 0:00:01]} 27. Bc8 {[%emt 0:00:05]} e6 {[%emt 0:00:22]} 28. Nb7 {[%emt 0:00:04]} Nxb7 {[%emt 0:00:13]} 29. Bxb7 {[%emt 0:00:01]} 1/2-1/2

[Event "Razuvaev Memorial 2020"]
[Site "Moscow"]
[Date "2020.11.06"]
[Round "1.4"]
[White "Tomashevsky, Evgeny"]
[Black "Kobalia, Mikhail"]
[Result "1-0"]
[ECO "D45"]
[WhiteElo "2681"]
[BlackElo "2569"]
[Annotator "ChessBase"]
[PlyCount "67"]
[EventDate "2020.11.06"]
[EventCountry "RUS"]
[SourceTitle "playchess.com"]
[Source "ChessBase"]
[SourceQuality "1"]
[TimeControl "300+3"]

1. Nf3 {[%emt 0:00:02]} d5 {[%emt 0:00:03]} 2. e3 {[%emt 0:00:03]} Nf6 {[%emt 0:00:02]} 3. c4 {[%emt 0:00:02]} c6 {[%emt 0:00:01]} 4. Nc3 {[%emt 0:00:03]} e6 {[%emt 0:00:04]} 5. b3 {[%emt 0:00:07]} Bd6 {[%emt 0:00:02]} 6. Bb2 {[%emt 0:00:05]} O-O {[%emt 0:00:02]} 7. Be2 {[%emt 0:00:11]} Re8 {[%emt 0:00:02]} 8. d4 {[%emt 0:00:23]} Nbd7 {[%emt 0:00:11]} 9. O-O {[%emt 0:00:02]} b6 {[%emt 0:00:01]} 10. Rc1 {[%emt 0:00:07]} Bb7 {[%emt 0:00:02]} 11. Re1 {[%emt 0:00:16]} Rc8 {[%emt 0:00:13]} 12. Bf1 {[%emt 0:00:03]} c5 {[%emt 0:00:03]} 13. cxd5 {[%emt 0:00:05]} exd5 {[%emt 0:00:02]} 14. g3 {[%emt 0:00:17]} Qe7 {[%emt 0:00:06]} 15. Bg2 {[%emt 0:00:04]} c4 {[%emt 0:00:29]} 16. bxc4 {[%emt 0:00:07]} Rxc4 {[%emt 0:00:03]} 17. Nd2 {[%emt 0:00:09]} Rcc8 {[%emt 0:00:08]} 18. e4 {[%emt 0:00:06]} dxe4 {[%emt 0:00:11]} 19. Ndxe4 {[%emt 0:00:32]} Nxe4 {[%emt 0:00:03]} 20. Nxe4 {[%emt 0:00:02]} Bb4 {[%emt 0:01:08]} 21. Re3 {[%emt 0:00:36]} Rxc1 {[%emt 0:00:03]} 22. Qxc1 {[%emt 0:00:22]} Rc8 {[%emt 0:01:02]} 23. Qb1 {[%emt 0:00:03]} Qd8 {[%emt 0:00:13]} 24. h4 {[%emt 0:00:36]} h6 {[%emt 0:00:13]} 25. d5 {[%emt 0:00:35]} Bf8 {[%emt 0:00:11]} 26. Qd1 {[%emt 0:00:06]} Nc5 {[%emt 0:00:06]} 27. Qg4 {[%emt 0:00:11]} Nxe4 {[%emt 0:00:42]} 28. Bxe4 {[%emt 0:00:02]} Qd6 {[%emt 0:00:02]} 29. h5 {[%emt 0:00:09]} Re8 {[%emt 0:00:21]} 30. Bh7+ {[%emt 0:00:25]} Kxh7 {[%emt 0:00:03]} 31. Qf5+ {[%emt 0:00:01]} Kg8 {[%emt 0:00:14]} 32. Rxe8 {[%emt 0:00:01]} Bxd5 {[%emt 0:00:01]} 33. Qe5 {[%emt 0:00:02]} Kh7 {[%emt 0:00:24]} 34. Rxf8 {[%emt 0:00:06]} 1-0

[Event "Razuvaev Memorial 2020"]
[Site "Moscow"]
[Date "2020.11.06"]
[Round "2.1"]
[White "Vladimir, Kramnik"]
[Black "Kobalia, Mikhail"]
[Result "1/2-1/2"]
[ECO "A11"]
[WhiteElo "2837"]
[BlackElo "2590"]
[Annotator "RC"]
[PlyCount "86"]
[EventDate "2020.11.06"]
[EventCountry "RUS"]
[SourceTitle "playchess.com"]
[Source "ChessBase"]
[SourceQuality "1"]
[TimeControl "300+3"]

1. c4 {[%emt 0:00:05]} c6 {[%emt 0:00:02]} 2. Nf3 {[%emt 0:00:03]} d5 {[%emt 0:00:01]} 3. g3 {[%emt 0:00:01]} Bg4 {[%emt 0:00:20]} 4. Ne5 {[%emt 0:00:02]} Be6 {[%emt 0:00:02]} 5. cxd5 {[%emt 0:00:09]} Bxd5 {[%emt 0:00:08]} 6. f3 {[%emt 0:00:01]} Nd7 {[%emt 0:00:17]} 7. Nxd7 {[%emt 0:00:05]} Qxd7 {[%emt 0:00:01]} 8. d4 {[%emt 0:00:04]} Be6 {[%emt 0:00:15]} 9. Nc3 {[%emt 0:00:08]} Nf6 {[%emt 0:00:02]} 10. e4 {[%emt 0:00:06]} Bh3 {[%emt 0:00:17]} 11. Bxh3 {[%emt 0:00:15]} Qxh3 {[%emt 0:00:03]} 12. Qe2 {[%emt 0:00:02]} e6 {[%emt 0:00:19]} 13. Be3 {[%emt 0:00:12]} Bb4 {[%emt 0:00:05]} 14. g4 {[%emt 0:00:10]} h5 {[%emt 0:00:07]} 15. g5 {[%emt 0:00:06]} Nd7 {[%emt 0:00:02]} 16. O-O-O {[%emt 0:00:07]} Bxc3 {[%emt 0:00:17]} 17. bxc3 {[%emt 0:00:02]} e5 {[%emt 0:00:38]} 18. dxe5 {[%emt 0:00:32]} Nxe5 {[%emt 0:00:02]} 19. f4 {[%emt 0:00:08]} Nd7 {[%emt 0:00:48]} 20. f5 {[%emt 0:00:36]} O-O-O {[%emt 0:00:12]} 21. Bd4 {[%emt 0:00:27]} f6 {[%emt 0:00:10]} 22. Rhg1 {[%emt 0:00:37]} Rhe8 {[%emt 0:00:06]} 23. gxf6 {[%emt 0:00:14]} Nxf6 {[%emt 0:00:10]} 24. e5 {[%emt 0:00:43]} Nd5 {[%emt 0:00:05]} 25. Qd3 {[%emt 0:00:13]} Qxd3 {[%emt 0:00:26]} 26. Rxd3 {[%emt 0:00:02]} Nf4 {[%emt 0:00:01]} 27. Rd2 {[%emt 0:00:23]} c5 {[%emt 0:00:02]} 28. Be3 {[%emt 0:00:08]} Nd3+ {[%emt 0:00:16]} 29. Kc2 {[%emt 0:00:01]} c4 {[%emt 0:00:17]} 30. e6 {[%emt 0:00:04]} Rd5 {[%emt 0:00:02]} 31. Rf1 {[%emt 0:00:02]} Rf8 {[%emt 0:00:08]} 32. Bd4 {[%emt 0:00:16]} Rdxf5 {[%emt 0:00:07]} 33. Rxf5 {[%emt 0:00:04]} Rxf5 {[%emt 0:00:01]} 34. Re2 {[%emt 0:00:02]} Kd8 {[%emt 0:00:06]} 35. Bxg7 {[%emt 0:00:02]} Ke7 {[%emt 0:00:13]} 36. Bd4 {[%emt 0:00:02]} Ra5 {[%emt 0:00:12]} 37. Kd1 {[%emt 0:00:06]} Rb5 {[%emt 0:00:09]} 38. Re4 {[%emt 0:00:12]} Rb2 {[%emt 0:00:02]} 39. h4 {[%emt 0:00:04]} Nf2+ {[%emt 0:00:09]} 40. Bxf2 {[%emt 0:00:03]} Rxf2 {[%emt 0:00:01]} 41. Rxc4 {[%emt 0:00:02]} Rxa2 {[%emt 0:00:03]} 42. Rc7+ {[%emt 0:00:02]} Kxe6 {[%emt 0:00:01]} 43. Rxb7 {[%emt 0:00:01]} Ra4 {[%emt 0:00:03]} 1/2-1/2

[Event "Razuvaev Memorial 2020"]
[Site "Moscow"]
[Date "2020.11.06"]
[Round "2.2"]
[White "Gelfand, Boris"]
[Black "Tomashevsky, Evgeny"]
[Result "1/2-1/2"]
[ECO "E11"]
[WhiteElo "2693"]
[BlackElo "2681"]
[Annotator "ChessBase"]
[PlyCount "153"]
[EventDate "2020.11.06"]
[EventCountry "RUS"]
[SourceTitle "playchess.com"]
[Source "ChessBase"]
[SourceQuality "1"]
[TimeControl "300+3"]

1. d4 {[%emt 0:00:01]} e6 {[%emt 0:00:02]} 2. c4 {[%emt 0:00:02]} Bb4+ {[%emt 0:00:02]} 3. Nd2 {[%emt 0:00:02]} c5 {[%emt 0:00:13]} 4. a3 {[%emt 0:00:03]} Bxd2+ {[%emt 0:00:02]} 5. Qxd2 {[%emt 0:00:01]} cxd4 {[%emt 0:00:01]} 6. Nf3 {[%emt 0:00:04]} Nf6 {[%emt 0:00:20]} 7. Nxd4 {[%emt 0:00:01]} d5 {[%emt 0:00:33]} 8. cxd5 {[%emt 0:01:04]} Qxd5 {[%emt 0:00:02]} 9. f3 {[%emt 0:00:06]} e5 {[%emt 0:00:11]} 10. Nc2 {[%emt 0:00:02]} Qb3 {[%emt 0:00:27]} 11. e4 {[%emt 0:00:33]} Nc6 {[%emt 0:00:03]} 12. a4 {[%emt 0:00:28]} O-O {[%emt 0:00:27]} 13. Ra3 {[%emt 0:00:02]} Qe6 {[%emt 0:00:02]} 14. Be2 {[%emt 0:00:18]} Rd8 {[%emt 0:00:28]} 15. Rd3 {[%emt 0:00:03]} Rxd3 {[%emt 0:00:37]} 16. Qxd3 {[%emt 0:00:01]} Qe7 {[%emt 0:00:01]} 17. O-O {[%emt 0:00:22]} Be6 {[%emt 0:00:03]} 18. Be3 {[%emt 0:00:01]} Rc8 {[%emt 0:00:10]} 19. Rc1 {[%emt 0:00:51]} h6 {[%emt 0:00:13]} 20. Qa3 {[%emt 0:00:12]} Qd8 {[%emt 0:00:28]} 21. Rd1 {[%emt 0:00:18]} Qc7 {[%emt 0:00:02]} 22. b4 {[%emt 0:00:08]} Na5 {[%emt 0:00:21]} 23. bxa5 {[%emt 0:00:35]} Qxc2 {[%emt 0:00:02]} 24. Rd2 {[%emt 0:00:01]} Qb1+ {[%emt 0:00:07]} 25. Kf2 {[%emt 0:00:02]} Qh1 {[%emt 0:00:25]} 26. Qe7 {[%emt 0:00:14]} Qxh2 {[%emt 0:00:08]} 27. Rd8+ {[%emt 0:00:03]} Rxd8 {[%emt 0:00:02]} 28. Qxd8+ {[%emt 0:00:01]} Kh7 {[%emt 0:00:01]} 29. Bxa7 {[%emt 0:00:24]} Nh5 {[%emt 0:00:37]} 30. Be3 {[%emt 0:00:09]} Ng3 {[%emt 0:00:04]} 31. Qd1 {[%emt 0:00:05]} Bh3 {[%emt 0:00:10]} 32. Qg1 {[%emt 0:00:06]} Qxg1+ {[%emt 0:00:02]} 33. Kxg1 {[%emt 0:00:01]} Nxe2+ {[%emt 0:00:01]} 34. Kf2 {[%emt 0:00:00]} Bxg2 {[%emt 0:00:03]} 35. Kxe2 {[%emt 0:00:02]} Bh3 {[%emt 0:00:02]} 36. Bb6 {[%emt 0:00:02]} Bd7 {[%emt 0:00:01]} 37. Bc7 {[%emt 0:00:03]} f6 {[%emt 0:00:02]} 38. Ke3 {[%emt 0:00:04]} Bxa4 {[%emt 0:00:13]} 39. f4 {[%emt 0:00:02]} exf4+ {[%emt 0:00:01]} 40. Kxf4 {[%emt 0:00:01]} Bd7 {[%emt 0:00:01]} 41. Bd8 {[%emt 0:00:03]} Kg6 {[%emt 0:00:03]} 42. Kg3 {[%emt 0:00:08]} Kf7 {[%emt 0:00:02]} 43. Kf4 {[%emt 0:00:01]} Bc6 {[%emt 0:00:03]} 44. Ke3 {[%emt 0:00:02]} h5 {[%emt 0:00:02]} 45. Kf4 {[%emt 0:00:04]} Ke6 {[%emt 0:00:02]} 46. Ke3 {[%emt 0:00:03]} Kf7 {[%emt 0:00:03]} 47. Kf4 {[%emt 0:00:01]} Bd7 {[%emt 0:00:04]} 48. Kg3 {[%emt 0:00:10]} g5 {[%emt 0:00:06]} 49. Kf3 {[%emt 0:00:05]} Bc6 {[%emt 0:00:03]} 50. Ke3 {[%emt 0:00:01]} Kg6 {[%emt 0:00:02]} 51. Be7 {[%emt 0:00:02]} h4 {[%emt 0:00:01]} 52. Bd8 {[%emt 0:00:02]} Kf7 {[%emt 0:00:01]} 53. Kd4 {[%emt 0:00:02]} Ke6 {[%emt 0:00:08]} 54. Ke3 {[%emt 0:00:03]} Kf7 {[%emt 0:00:01]} 55. Kd4 {[%emt 0:00:02]} g4 {[%emt 0:00:04]} 56. Ke3 {[%emt 0:00:03]} g3 {[%emt 0:00:07]} 57. Kf4 {[%emt 0:00:03]} Bd7 {[%emt 0:00:01]} 58. Bb6 {[%emt 0:00:03]} Ke6 {[%emt 0:00:03]} 59. Bd4 {[%emt 0:00:02]} Kf7 {[%emt 0:00:02]} 60. Bb6 {[%emt 0:00:02]} Kg6 {[%emt 0:00:01]} 61. Bd4 {[%emt 0:00:02]} Bc6 {[%emt 0:00:01]} 62. Bb6 {[%emt 0:00:03]} Bd7 {[%emt 0:00:03]} 63. Bd4 {[%emt 0:00:01]} g2 {[%emt 0:00:01]} 64. Bf2 {[%emt 0:00:04]} h3 {[%emt 0:00:01]} 65. Kg3 {[%emt 0:00:03]} Kf7 {[%emt 0:00:01]} 66. Bd4 {[%emt 0:00:03]} Bg4 {[%emt 0:00:03]} 67. Kh2 {[%emt 0:00:01]} Ke6 {[%emt 0:00:01]} 68. Kg3 {[%emt 0:00:09]} Ke7 {[%emt 0:00:03]} 69. Kh2 {[%emt 0:00:01]} Be6 {[%emt 0:00:01]} 70. Kg3 {[%emt 0:00:02]} Kf7 {[%emt 0:00:02]} 71. Kh2 {[%emt 0:00:02]} Kg6 {[%emt 0:00:01]} 72. Kg3 {[%emt 0:00:01]} Bd7 {[%emt 0:00:03]} 73. Kh2 {[%emt 0:00:02]} Kg5 {[%emt 0:00:01]} 74. Kg3 {[%emt 0:00:02]} Kh5 {[%emt 0:00:04]} 75. Kh2 {[%emt 0:00:04]} Kg4 {[%emt 0:00:01]} 76. Bxf6 {[%emt 0:00:02]} Kf4 {[%emt 0:00:03]} 77. Bd4 {[%emt 0:00:07]} 1/2-1/2

[Event "Razuvaev Memorial 2020"]
[Site "Moscow"]
[Date "2020.11.06"]
[Round "2.3"]
[White "Alexander, Motylev"]
[Black "Vladimir, Potkin"]
[Result "1-0"]
[ECO "C60"]
[WhiteElo "2701"]
[BlackElo "2635"]
[Annotator "ChessBase"]
[PlyCount "97"]
[EventDate "2020.11.06"]
[EventCountry "RUS"]
[SourceTitle "playchess.com"]
[Source "ChessBase"]
[SourceQuality "1"]
[TimeControl "300+3"]

1. e4 {[%emt 0:00:02]} e5 {[%emt 0:00:02]} 2. Nf3 {[%emt 0:00:08]} Nc6 {[%emt 0:00:02]} 3. Bb5 {[%emt 0:00:07]} g6 {[%emt 0:00:02]} 4. d4 {[%emt 0:00:18]} exd4 {[%emt 0:00:03]} 5. Bg5 {[%emt 0:00:01]} Be7 {[%emt 0:00:02]} 6. Bxe7 {[%emt 0:00:01]} Qxe7 {[%emt 0:00:02]} 7. O-O {[%emt 0:00:01]} Nf6 {[%emt 0:00:04]} 8. Re1 {[%emt 0:00:15]} O-O {[%emt 0:00:09]} 9. Bxc6 {[%emt 0:00:07]} dxc6 {[%emt 0:00:04]} 10. Qxd4 {[%emt 0:00:01]} Bg4 {[%emt 0:00:16]} 11. Qe5 {[%emt 0:00:16]} Rfe8 {[%emt 0:00:07]} 12. Qxe7 {[%emt 0:00:05]} Rxe7 {[%emt 0:00:01]} 13. Nfd2 {[%emt 0:00:08]} Rd8 {[%emt 0:00:11]} 14. f3 {[%emt 0:00:02]} Be6 {[%emt 0:00:01]} 15. Nf1 {[%emt 0:00:03]} Nd7 {[%emt 0:00:12]} 16. Nc3 {[%emt 0:00:17]} Ne5 {[%emt 0:00:04]} 17. Ne3 {[%emt 0:00:10]} b5 {[%emt 0:00:57]} 18. a3 {[%emt 0:00:21]} a5 {[%emt 0:00:47]} 19. Rad1 {[%emt 0:00:09]} Rb8 {[%emt 0:00:06]} 20. b3 {[%emt 0:00:17]} Ree8 {[%emt 0:00:31]} 21. Rd2 {[%emt 0:00:29]} Nd7 {[%emt 0:00:05]} 22. Red1 {[%emt 0:00:06]} Nc5 {[%emt 0:00:01]} 23. Ne2 {[%emt 0:00:12]} b4 {[%emt 0:00:19]} 24. a4 {[%emt 0:00:42]} Kf8 {[%emt 0:00:07]} 25. Nd4 {[%emt 0:00:04]} Bd7 {[%emt 0:00:04]} 26. Nc4 {[%emt 0:00:03]} Ra8 {[%emt 0:00:03]} 27. Kf2 {[%emt 0:00:10]} f6 {[%emt 0:00:05]} 28. Ne2 {[%emt 0:00:08]} Be6 {[%emt 0:00:08]} 29. Ne3 {[%emt 0:00:01]} Ke7 {[%emt 0:00:03]} 30. Nf4 {[%emt 0:00:04]} Bf7 {[%emt 0:00:06]} 31. Nd3 {[%emt 0:00:01]} Nxd3+ {[%emt 0:00:34]} 32. Rxd3 {[%emt 0:00:03]} Be6 {[%emt 0:00:06]} 33. g4 {[%emt 0:00:07]} Kf7 {[%emt 0:00:20]} 34. f4 {[%emt 0:00:18]} Re7 {[%emt 0:00:24]} 35. f5 {[%emt 0:00:02]} Bc8 {[%emt 0:00:01]} 36. Kf3 {[%emt 0:00:06]} Bb7 {[%emt 0:00:01]} 37. Rd7 {[%emt 0:00:14]} Rae8 {[%emt 0:00:01]} 38. Rxe7+ {[%emt 0:00:01]} Rxe7 {[%emt 0:00:01]} 39. Rd8 {[%emt 0:00:02]} c5 {[%emt 0:00:37]} 40. Nd5 {[%emt 0:00:03]} Bxd5 {[%emt 0:00:01]} 41. Rxd5 {[%emt 0:00:03]} gxf5 {[%emt 0:00:06]} 42. gxf5 {[%emt 0:00:05]} c6 {[%emt 0:00:06]} 43. Rxc5 {[%emt 0:00:03]} Rd7 {[%emt 0:00:00]} 44. Rxa5 {[%emt 0:00:09]} Rd2 {[%emt 0:00:01]} 45. Rc5 {[%emt 0:00:01]} Rxh2 {[%emt 0:00:01]} 46. a5 {[%emt 0:00:00]} h5 {[%emt 0:00:03]} 47. a6 {[%emt 0:00:02]} Rd2 {[%emt 0:00:02]} 48. Rxc6 {[%emt 0:00:05]} Rd7 {[%emt 0:00:02]} 49. Rb6 {[%emt 0:00:01]} 1-0

[Event "Razuvaev Memorial 2020"]
[Site "Moscow"]
[Date "2020.11.06"]
[Round "2.4"]
[White "Lautier, Joel"]
[Black "Nepomniachtchi, Ian"]
[Result "0-1"]
[ECO "D85"]
[WhiteElo "2658"]
[BlackElo "2785"]
[Annotator "ChessBase"]
[PlyCount "102"]
[EventDate "2020.11.06"]
[EventCountry "RUS"]
[SourceTitle "playchess.com"]
[Source "ChessBase"]
[SourceQuality "1"]
[TimeControl "300+3"]

1. d4 {[%emt 0:00:01]} Nf6 {[%emt 0:00:04]} 2. c4 {[%emt 0:00:01]} g6 {[%emt 0:00:00]} 3. Nc3 {[%emt 0:00:02]} d5 {[%emt 0:00:01]} 4. cxd5 {[%emt 0:00:01]} Nxd5 {[%emt 0:00:00]} 5. e4 {[%emt 0:00:01]} Nxc3 {[%emt 0:00:01]} 6. bxc3 {[%emt 0:00:01]} Bg7 {[%emt 0:00:00]} 7. Nf3 {[%emt 0:00:01]} c5 {[%emt 0:00:04]} 8. Rb1 {[%emt 0:00:00]} O-O {[%emt 0:00:08]} 9. Be2 {[%emt 0:00:02]} b6 {[%emt 0:00:00]} 10. O-O {[%emt 0:00:03]} Qd7 {[%emt 0:00:01]} 11. Bg5 {[%emt 0:00:05]} h6 {[%emt 0:00:06]} 12. Bh4 {[%emt 0:00:05]} Ba6 {[%emt 0:00:01]} 13. Bxa6 {[%emt 0:00:08]} Nxa6 {[%emt 0:00:01]} 14. Qe2 {[%emt 0:00:02]} Nc7 {[%emt 0:00:14]} 15. dxc5 {[%emt 0:00:08]} bxc5 {[%emt 0:00:29]} 16. Qc4 {[%emt 0:00:10]} Rfd8 {[%emt 0:00:30]} 17. Qxc5 {[%emt 0:00:06]} g5 {[%emt 0:00:13]} 18. Bg3 {[%emt 0:00:05]} Ne6 {[%emt 0:00:01]} 19. Qf5 {[%emt 0:00:04]} Rac8 {[%emt 0:00:10]} 20. h4 {[%emt 0:00:13]} Rc5 {[%emt 0:00:41]} 21. e5 {[%emt 0:00:08]} Nf4 {[%emt 0:00:02]} 22. Qxd7 {[%emt 0:00:07]} Ne2+ {[%emt 0:00:22]} 23. Kh2 {[%emt 0:00:02]} Rxd7 {[%emt 0:00:00]} 24. hxg5 {[%emt 0:00:13]} Nxg3 {[%emt 0:00:07]} 25. Kxg3 {[%emt 0:00:17]} hxg5 {[%emt 0:01:04]} 26. Rb8+ {[%emt 0:00:08]} Kh7 {[%emt 0:00:01]} 27. Nxg5+ {[%emt 0:00:03]} Kg6 {[%emt 0:00:00]} 28. f4 {[%emt 0:00:13]} Rxe5 {[%emt 0:00:03]} 29. Rg8 {[%emt 0:01:15]} Re2 {[%emt 0:00:27]} 30. Nf3 {[%emt 0:00:34]} Rd3 {[%emt 0:00:09]} 31. f5+ {[%emt 0:00:44]} Kf6 {[%emt 0:00:02]} 32. Rh1 {[%emt 0:00:14]} Rxc3 {[%emt 0:00:15]} 33. Rh7 {[%emt 0:00:01]} Rcc2 {[%emt 0:00:01]} 34. Nh4 {[%emt 0:00:01]} Rc3+ {[%emt 0:00:13]} 35. Kh2 {[%emt 0:00:18]} Re4 {[%emt 0:00:04]} 36. g3 {[%emt 0:00:06]} Rg4 {[%emt 0:00:03]} 37. Rh6+ {[%emt 0:00:26]} Bxh6 {[%emt 0:00:20]} 38. Rxg4 {[%emt 0:00:02]} Ra3 {[%emt 0:00:01]} 39. Rc4 {[%emt 0:00:04]} Bg5 {[%emt 0:00:13]} 40. Rc6+ {[%emt 0:00:04]} Ke5 {[%emt 0:00:01]} 41. Rc5+ {[%emt 0:00:08]} Kd6 {[%emt 0:00:06]} 42. Rc2 {[%emt 0:00:02]} Ke5 {[%emt 0:00:04]} 43. Re2+ {[%emt 0:00:04]} Kf6 {[%emt 0:00:02]} 44. Kh3 {[%emt 0:00:03]} Bf4 {[%emt 0:00:09]} 45. Rg2 {[%emt 0:00:10]} Kg5 {[%emt 0:00:01]} 46. Rg1 {[%emt 0:00:05]} a5 {[%emt 0:00:02]} 47. Rg2 {[%emt 0:00:03]} a4 {[%emt 0:00:01]} 48. Rg1 {[%emt 0:00:01]} Be5 {[%emt 0:00:06]} 49. Rg2 {[%emt 0:00:02]} Bd6 {[%emt 0:00:00]} 50. f6 {[%emt 0:00:08]} exf6 {[%emt 0:00:12]} 51. Kh2 {[%emt 0:00:10]} Kg4 {[%emt 0:00:06]} 0-1

[Event "Razuvaev Memorial 2020"]
[Site "Moscow"]
[Date "2020.11.06"]
[Round "3.2"]
[White "Potkin, Vladimir"]
[Black "Lautier, Joel"]
[Result "1/2-1/2"]
[ECO "E49"]
[WhiteElo "2443"]
[BlackElo "2658"]
[Annotator "ChessBase"]
[PlyCount "115"]
[EventDate "2020.11.06"]
[EventCountry "RUS"]
[SourceTitle "playchess.com"]
[Source "ChessBase"]
[SourceQuality "1"]
[TimeControl "300+3"]

1. d4 {[%emt 0:00:01]} d5 {[%emt 0:00:02]} 2. c4 {[%emt 0:00:01]} e6 {[%emt 0:00:01]} 3. Nc3 {[%emt 0:00:01]} Bb4 {[%emt 0:00:02]} 4. e3 {[%emt 0:00:04]} Nf6 {[%emt 0:00:02]} 5. a3 {[%emt 0:00:05]} Bxc3+ {[%emt 0:00:04]} 6. bxc3 {[%emt 0:00:00]} O-O {[%emt 0:00:03]} 7. cxd5 {[%emt 0:00:03]} exd5 {[%emt 0:00:03]} 8. Bd3 {[%emt 0:00:01]} c5 {[%emt 0:00:14]} 9. Ne2 {[%emt 0:00:01]} Nc6 {[%emt 0:00:04]} 10. O-O {[%emt 0:00:04]} Qa5 {[%emt 0:00:04]} 11. f3 {[%emt 0:00:13]} Re8 {[%emt 0:00:03]} 12. Bd2 {[%emt 0:00:14]} Qc7 {[%emt 0:00:23]} 13. Ng3 {[%emt 0:00:11]} Be6 {[%emt 0:00:10]} 14. Rf2 {[%emt 0:00:35]} Rac8 {[%emt 0:00:13]} 15. a4 {[%emt 0:00:04]} b6 {[%emt 0:00:14]} 16. Bc1 {[%emt 0:00:14]} cxd4 {[%emt 0:00:06]} 17. cxd4 {[%emt 0:00:03]} Nb4 {[%emt 0:00:03]} 18. Bb5 {[%emt 0:00:02]} Bd7 {[%emt 0:00:03]} 19. Bd2 {[%emt 0:01:47]} a5 {[%emt 0:00:54]} 20. Bxb4 {[%emt 0:00:02]} axb4 {[%emt 0:00:05]} 21. Bxd7 {[%emt 0:00:15]} Qxd7 {[%emt 0:00:02]} 22. Nf1 {[%emt 0:00:01]} Rc4 {[%emt 0:00:19]} 23. Rb2 {[%emt 0:00:02]} Ra8 {[%emt 0:00:13]} 24. Nd2 {[%emt 0:00:12]} Rc3 {[%emt 0:00:03]} 25. Rxb4 {[%emt 0:00:21]} Qe7 {[%emt 0:00:07]} 26. Rxb6 {[%emt 0:00:12]} Qxe3+ {[%emt 0:00:02]} 27. Kh1 {[%emt 0:00:06]} Rd3 {[%emt 0:00:03]} 28. Rb2 {[%emt 0:00:21]} Qxd4 {[%emt 0:00:01]} 29. Qb1 {[%emt 0:00:07]} g6 {[%emt 0:00:14]} 30. Nf1 {[%emt 0:00:01]} Kg7 {[%emt 0:00:08]} 31. a5 {[%emt 0:00:02]} Rxa5 {[%emt 0:00:13]} 32. Rxa5 {[%emt 0:00:02]} Rd1 {[%emt 0:00:01]} 33. Ra1 {[%emt 0:00:07]} Rxb1 {[%emt 0:00:07]} 34. Raxb1 {[%emt 0:00:01]} h5 {[%emt 0:00:02]} 35. Rd2 {[%emt 0:00:04]} Qe5 {[%emt 0:00:03]} 36. Rbd1 {[%emt 0:00:01]} h4 {[%emt 0:00:11]} 37. Rd3 {[%emt 0:00:04]} Qe2 {[%emt 0:00:03]} 38. h3 {[%emt 0:00:18]} Qe5 {[%emt 0:00:06]} 39. Ne3 {[%emt 0:00:05]} Nh5 {[%emt 0:00:03]} 40. Nxd5 {[%emt 0:00:12]} Ng3+ {[%emt 0:00:02]} 41. Kg1 {[%emt 0:00:00]} Ne2+ {[%emt 0:00:02]} 42. Kf2 {[%emt 0:00:05]} Ng3 {[%emt 0:00:05]} 43. Ne3 {[%emt 0:00:04]} Qf4 {[%emt 0:00:04]} 44. Rd4 {[%emt 0:00:06]} Qf6 {[%emt 0:00:02]} 45. Nd5 {[%emt 0:00:04]} Qe5 {[%emt 0:00:04]} 46. R1d2 {[%emt 0:00:10]} Nh1+ {[%emt 0:00:04]} 47. Kg1 {[%emt 0:00:01]} Qe1+ {[%emt 0:00:02]} 48. Kh2 {[%emt 0:00:03]} Nf2 {[%emt 0:00:13]} 49. Rxf2 {[%emt 0:00:07]} Qxf2 {[%emt 0:00:02]} 50. Re4 {[%emt 0:00:02]} Qg3+ {[%emt 0:00:07]} 51. Kh1 {[%emt 0:00:02]} f5 {[%emt 0:00:03]} 52. Re7+ {[%emt 0:00:02]} Kh6 {[%emt 0:00:03]} 53. Re2 {[%emt 0:00:01]} Qd6 {[%emt 0:00:02]} 54. Rd2 {[%emt 0:00:05]} Qc5 {[%emt 0:00:09]} 55. Kh2 {[%emt 0:00:06]} Qd6+ {[%emt 0:00:02]} 56. Kh1 {[%emt 0:00:01]} Qg3 {[%emt 0:00:04]} 57. Re2 {[%emt 0:00:05]} Qd6 {[%emt 0:00:02]} 58. Rd2 {[%emt 0:00:01]} 1/2-1/2